[Event "*** SCC Grand Prix: Titled Tuesday Blitz"]
[Site "Chess.com"]
[Date "2020.10.06"]
[Round "4"]
[White "aa175"]
[Black "Savagelittlemole"]
[Result "0-1"]
[WhiteElo "2297"]
[BlackElo "2588"]
[TimeControl "180+1"]
[EndTime "10:38:18 PDT"]
[Termination "Savagelittlemole won by resignation"]

1. d4 {[%clk 0:03:00.9]} 1... g6 {[%clk 0:02:58.5]} 2. Bf4 {[%clk 0:03:01.3]}
2... Bg7 {[%clk 0:02:58.6]} 3. e3 {[%clk 0:03:01.7]} 3... d6 {[%clk 0:02:57.4]}
4. Nf3 {[%clk 0:03:02.3]} 4... Nd7 {[%clk 0:02:54.8]} 5. Bc4 {[%clk 0:03:02.6]}
5... c6 {[%clk 0:02:36.8]} 6. a4 {[%clk 0:02:54.6]} 6... d5 {[%clk 0:02:35.8]}
7. Bd3 {[%clk 0:02:54.5]} 7... Ngf6 {[%clk 0:02:33.5]} 8. a5 {[%clk 0:02:54.4]}
8... O-O {[%clk 0:02:29.3]} 9. Nbd2 {[%clk 0:02:49.8]} 9... Re8 {[%clk
0:02:25.8]} 10. h4 {[%clk 0:02:47]} 10... Nf8 {[%clk 0:02:21.8]} 11. Ne5 {[%clk
0:02:38.2]} 11... Nh5 {[%clk 0:02:15.1]} 12. Qf3 {[%clk 0:02:31]} 12... Nxf4
{[%clk 0:02:12.3]} 13. exf4 {[%clk 0:02:31.9]} 13... Ne6 {[%clk 0:02:08]} 14. c3
{[%clk 0:02:25.9]} 14... f6 {[%clk 0:02:01.3]} 15. h5 {[%clk 0:02:20]} 15...
fxe5 {[%clk 0:01:56.7]} 16. dxe5 {[%clk 0:02:16]} 16... Nc5 {[%clk 0:01:53.4]}
17. Bc2 {[%clk 0:02:09.3]} 17... Bf5 {[%clk 0:01:53.4]} 18. Bxf5 {[%clk
0:02:08.5]} 18... gxf5 {[%clk 0:01:53.6]} 19. h6 {[%clk 0:02:08]} 19... Bh8
{[%clk 0:01:48]} 20. Rh5 {[%clk 0:01:54.3]} 20... e6 {[%clk 0:01:44.7]} 21. Rg5+
{[%clk 0:01:49.9]} 21... Kf7 {[%clk 0:01:28.4]} 22. O-O-O {[%clk 0:01:40.4]}
22... Rg8 {[%clk 0:01:28.7]} 23. Nc4 {[%clk 0:01:27.7]} 23... Rxg5 {[%clk
0:01:23.4]} 24. Nd6+ {[%clk 0:01:27.1]} 24... Kg8 {[%clk 0:01:20.1]} 25. fxg5
{[%clk 0:01:26.1]} 25... Qxg5+ {[%clk 0:01:21]} 26. Kc2 {[%clk 0:01:17.2]} 26...
Bxe5 {[%clk 0:01:21.2]} 27. b4 {[%clk 0:01:04.7]} 27... Ne4 {[%clk 0:01:18.5]}
28. Nxb7 {[%clk 0:00:45.6]} 28... Rf8 {[%clk 0:01:11.9]} 29. c4 {[%clk
0:00:25.8]} 29... Rf6 {[%clk 0:01:08.9]} 30. Nd8 {[%clk 0:00:15.6]} 30... Rxh6
{[%clk 0:01:07]} 31. Nxc6 {[%clk 0:00:13.7]} 31... Bg7 {[%clk 0:01:03.9]} 32.
cxd5 {[%clk 0:00:11.3]} 32... exd5 {[%clk 0:01:02.2]} 33. Rxd5 {[%clk
0:00:12.2]} 33... Rxc6+ {[%clk 0:01:00.1]} 34. Kb3 {[%clk 0:00:04.9]} 34... Qc1
{[%clk 0:00:52.2]} 35. Rc5 {[%clk 0:00:02.4]} 35... Nxc5+ {[%clk 0:00:50.3]} 36.
bxc5 {[%clk 0:00:02.5]} 36... Qxc5 {[%clk 0:00:49.4]} 37. a6 {[%clk 0:00:02.4]}
37... Rb6+ {[%clk 0:00:49.1]} 0-1

[Event "*** SCC Grand Prix: Titled Tuesday Blitz"]
[Site "Chess.com"]
[Date "2020.10.06"]
[Round "4"]
[White "PSvidler"]
[Black "Abdimalik_Abdisalimov"]
[Result "1-0"]
[WhiteElo "2909"]
[BlackElo "2750"]
[TimeControl "180+1"]
[EndTime "10:38:20 PDT"]
[Termination "PSvidler won by resignation"]

1. e4 {[%clk 0:03:00.9]} 1... c5 {[%clk 0:02:57.3]} 2. Nf3 {[%clk 0:03:00.3]}
2... d6 {[%clk 0:02:57.8]} 3. d4 {[%clk 0:03:00.2]} 3... cxd4 {[%clk 0:02:58.7]}
4. Nxd4 {[%clk 0:03:01]} 4... Nf6 {[%clk 0:02:59.3]} 5. Nc3 {[%clk 0:03:01.9]}
5... a6 {[%clk 0:02:59.8]} 6. Be3 {[%clk 0:02:58.4]} 6... e5 {[%clk 0:02:59.9]}
7. Nb3 {[%clk 0:02:58.1]} 7... Be6 {[%clk 0:03:00.2]} 8. f3 {[%clk 0:02:54]}
8... h5 {[%clk 0:03:00.2]} 9. Qd2 {[%clk 0:02:52]} 9... Nbd7 {[%clk 0:03:00.1]}
10. O-O-O {[%clk 0:02:51.4]} 10... Rc8 {[%clk 0:02:59.7]} 11. Kb1 {[%clk
0:02:50.4]} 11... Be7 {[%clk 0:02:54.3]} 12. h3 {[%clk 0:02:38.2]} 12... b5
{[%clk 0:02:51.1]} 13. Bd3 {[%clk 0:02:37.3]} 13... h4 {[%clk 0:02:49.6]} 14. f4
{[%clk 0:02:36.3]} 14... Nb6 {[%clk 0:02:44.3]} 15. Qf2 {[%clk 0:02:31.7]} 15...
Nfd7 {[%clk 0:02:23.7]} 16. f5 {[%clk 0:02:26.8]} 16... Bc4 {[%clk 0:02:23.4]}
17. Bxc4 {[%clk 0:02:26.5]} 17... Rxc4 {[%clk 0:02:20.4]} 18. Rd3 {[%clk
0:02:13.9]} 18... b4 {[%clk 0:02:17.7]} 19. Nd5 {[%clk 0:02:06.8]} 19... Nxd5
{[%clk 0:02:14.6]} 20. exd5 {[%clk 0:02:06.8]} 20... Nf6 {[%clk 0:02:09.2]} 21.
Nd2 {[%clk 0:02:06.6]} 21... Rc8 {[%clk 0:01:55.1]} 22. Bg5 {[%clk 0:02:02.4]}
22... Nd7 {[%clk 0:01:47.1]} 23. Bxe7 {[%clk 0:01:56]} 23... Qxe7 {[%clk
0:01:47.9]} 24. g4 {[%clk 0:01:54.3]} 24... hxg3 {[%clk 0:01:38.7]} 25. Rxg3
{[%clk 0:01:53.9]} 25... Rh7 {[%clk 0:01:38.9]} 26. a4 {[%clk 0:01:38.7]} 26...
Nf6 {[%clk 0:01:35]} 27. Qg2 {[%clk 0:01:33.5]} 27... Qd7 {[%clk 0:01:13.6]} 28.
Ne4 {[%clk 0:01:18]} 28... Ke7 {[%clk 0:00:55.7]} 29. b3 {[%clk 0:01:02.7]}
29... Qxf5 {[%clk 0:00:48]} 30. Ng5 {[%clk 0:01:02.6]} 30... Rh5 {[%clk
0:00:41.1]} 31. Rf1 {[%clk 0:00:58.8]} 31... Qd7 {[%clk 0:00:37.5]} 32. Nxf7
{[%clk 0:00:58.3]} 32... Rf8 {[%clk 0:00:28.1]} 33. Ng5 {[%clk 0:00:55.7]} 33...
Ne8 {[%clk 0:00:03.8]} 34. Rxf8 {[%clk 0:00:53.8]} 34... Kxf8 {[%clk 0:00:04.7]}
35. Qf3+ {[%clk 0:00:54.4]} 35... Nf6 {[%clk 0:00:04.9]} 36. Ne6+ {[%clk
0:00:54.3]} 36... Kg8 {[%clk 0:00:04.9]} 37. Qxf6 {[%clk 0:00:53.2]} 1-0

[Event "*** SCC Grand Prix: Titled Tuesday Blitz"]
[Site "Chess.com"]
[Date "2020.10.06"]
[Round "4"]
[White "HanSchut"]
[Black "pfalcon1949"]
[Result "0-1"]
[WhiteElo "2231"]
[BlackElo "2026"]
[TimeControl "180+1"]
[EndTime "10:38:28 PDT"]
[Termination "pfalcon1949 won by checkmate"]

1. e4 {[%clk 0:03:00.9]} 1... c6 {[%clk 0:02:59.7]} 2. d4 {[%clk 0:03:00.6]}
2... d5 {[%clk 0:02:59.6]} 3. e5 {[%clk 0:03:01]} 3... Bf5 {[%clk 0:02:58.4]} 4.
Nf3 {[%clk 0:03:00.2]} 4... e6 {[%clk 0:02:56.9]} 5. Be2 {[%clk 0:02:58.8]} 5...
c5 {[%clk 0:02:55.5]} 6. Be3 {[%clk 0:02:57.9]} 6... Qb6 {[%clk 0:02:54.5]} 7.
Nc3 {[%clk 0:02:51.2]} 7... Nc6 {[%clk 0:02:50.4]} 8. O-O {[%clk 0:02:49.3]}
8... cxd4 {[%clk 0:02:44.6]} 9. Nxd4 {[%clk 0:02:39.1]} 9... Nxd4 {[%clk
0:02:41.9]} 10. Bxd4 {[%clk 0:02:36]} 10... Qa5 {[%clk 0:02:40]} 11. Bb5+ {[%clk
0:02:23.9]} 11... Kd8 {[%clk 0:02:38.3]} 12. a3 {[%clk 0:02:17.4]} 12... Ne7
{[%clk 0:02:36.5]} 13. b4 {[%clk 0:02:14.2]} 13... Qc7 {[%clk 0:02:35.3]} 14.
Be2 {[%clk 0:02:06]} 14... Nc6 {[%clk 0:02:34.6]} 15. Nb5 {[%clk 0:02:04]} 15...
Qd7 {[%clk 0:02:29.5]} 16. f4 {[%clk 0:01:39.1]} 16... h5 {[%clk 0:02:27.5]} 17.
Kh1 {[%clk 0:01:38]} 17... h4 {[%clk 0:02:26.3]} 18. h3 {[%clk 0:01:37.3]} 18...
Be7 {[%clk 0:02:26.3]} 19. Qd2 {[%clk 0:01:23.6]} 19... Ke8 {[%clk 0:02:26.3]}
20. Rfd1 {[%clk 0:01:17]} 20... Kf8 {[%clk 0:02:26]} 21. Bf2 {[%clk 0:01:13]}
21... Kg8 {[%clk 0:02:23.6]} 22. Nd4 {[%clk 0:01:13]} 22... Nxd4 {[%clk
0:02:22.2]} 23. Bxd4 {[%clk 0:01:12.6]} 23... g6 {[%clk 0:02:22.9]} 24. c4
{[%clk 0:01:05.3]} 24... Kg7 {[%clk 0:02:07.8]} 25. cxd5 {[%clk 0:01:00.4]}
25... Qxd5 {[%clk 0:02:07]} 26. Bf3 {[%clk 0:00:59.8]} 26... Qd7 {[%clk
0:02:01.7]} 27. Qf2 {[%clk 0:00:58.4]} 27... Qb5 {[%clk 0:01:53.9]} 28. Bxa7
{[%clk 0:00:51.8]} 28... Rhc8 {[%clk 0:01:51.9]} 29. Be3 {[%clk 0:00:42]} 29...
Rc2 {[%clk 0:01:50.6]} 30. Rd2 {[%clk 0:00:42.4]} 30... Rac8 {[%clk 0:01:48.1]}
31. Rad1 {[%clk 0:00:19.4]} 31... Rxd2 {[%clk 0:01:43.9]} 32. Rxd2 {[%clk
0:00:19.8]} 32... Rc1+ {[%clk 0:01:42.4]} 33. Kh2 {[%clk 0:00:19.8]} 33... Rc3
{[%clk 0:01:39.1]} 34. Ra2 {[%clk 0:00:12.8]} 34... Qd3 {[%clk 0:01:32.7]} 35.
Bc5 {[%clk 0:00:11.5]} 35... Bxc5 {[%clk 0:01:20.6]} 36. bxc5 {[%clk 0:00:12.4]}
36... Rc1 {[%clk 0:01:10]} 37. Qe2 {[%clk 0:00:09.7]} 37... Qb1 {[%clk
0:01:06.2]} 38. g4 {[%clk 0:00:08.1]} 38... hxg3+ {[%clk 0:01:00.9]} 39. Kxg3
{[%clk 0:00:09]} 39... Rg1+ {[%clk 0:00:59.8]} 40. Bg2 {[%clk 0:00:09.5]} 40...
Be4 {[%clk 0:00:52.9]} 41. Qc4 {[%clk 0:00:06.4]} 41... Qe1+ {[%clk 0:00:48.3]}
42. Kh2 {[%clk 0:00:06]} 42... Bxg2 {[%clk 0:00:44.4]} 43. Rxg2 {[%clk
0:00:06.9]} 43... Rh1# {[%clk 0:00:43.6]} 0-1

[Event "*** SCC Grand Prix: Titled Tuesday Blitz"]
[Site "Chess.com"]
[Date "2020.10.06"]
[Round "4"]
[White "Gerasimenyuk_Miha"]
[Black "Moultino06"]
[Result "0-1"]
[WhiteElo "2421"]
[BlackElo "2656"]
[TimeControl "180+1"]
[EndTime "10:38:30 PDT"]
[Termination "Moultino06 won by resignation"]

1. d4 {[%clk 0:02:59.5]} 1... Nc6 {[%clk 0:02:59.5]} 2. Nf3 {[%clk 0:02:58.9]}
2... d6 {[%clk 0:02:58.9]} 3. Bg5 {[%clk 0:02:59.2]} 3... h6 {[%clk 0:02:58.2]}
4. Bh4 {[%clk 0:02:59.3]} 4... g5 {[%clk 0:02:58.3]} 5. Bg3 {[%clk 0:02:59.4]}
5... Bg7 {[%clk 0:02:58.3]} 6. e3 {[%clk 0:02:59.6]} 6... e5 {[%clk 0:02:56.6]}
7. c3 {[%clk 0:02:59.4]} 7... Nge7 {[%clk 0:02:55]} 8. Nbd2 {[%clk 0:02:59.2]}
8... f5 {[%clk 0:02:54.2]} 9. dxe5 {[%clk 0:02:58.7]} 9... dxe5 {[%clk
0:02:53.1]} 10. h4 {[%clk 0:02:57.2]} 10... f4 {[%clk 0:02:52.3]} 11. Bh2 {[%clk
0:02:54.9]} 11... g4 {[%clk 0:02:49.8]} 12. Ng1 {[%clk 0:02:52.2]} 12... O-O
{[%clk 0:02:32.8]} 13. Qb3+ {[%clk 0:02:44.1]} 13... Kh8 {[%clk 0:02:28.2]} 14.
O-O-O {[%clk 0:02:44]} 14... Qe8 {[%clk 0:02:27.2]} 15. Bb5 {[%clk 0:02:35.4]}
15... a6 {[%clk 0:02:23.2]} 16. Bd3 {[%clk 0:02:32.2]} 16... b5 {[%clk
0:02:04.5]} 17. Ne2 {[%clk 0:02:31.3]} 17... fxe3 {[%clk 0:01:53.3]} 18. fxe3
{[%clk 0:02:31.1]} 18... Nf5 {[%clk 0:01:53.8]} 19. Bxf5 {[%clk 0:02:29.5]}
19... Bxf5 {[%clk 0:01:53.1]} 20. Ng3 {[%clk 0:02:24.1]} 20... Be6 {[%clk
0:01:45.8]} 21. Qc2 {[%clk 0:02:23]} 21... b4 {[%clk 0:01:39.7]} 22. c4 {[%clk
0:02:20.7]} 22... a5 {[%clk 0:01:28.2]} 23. Nde4 {[%clk 0:02:18]} 23... a4
{[%clk 0:01:27.7]} 24. Qe2 {[%clk 0:01:58.1]} 24... Na5 {[%clk 0:01:17.1]} 25.
Nd2 {[%clk 0:01:52.3]} 25... b3 {[%clk 0:01:11.6]} 26. a3 {[%clk 0:01:51.9]}
26... Nxc4 {[%clk 0:01:05.8]} 27. Nxc4 {[%clk 0:01:48.6]} 27... Qc6 {[%clk
0:01:06.4]} 28. Kb1 {[%clk 0:01:45.2]} 28... Bxc4 {[%clk 0:01:02.1]} 29. Qxg4
{[%clk 0:01:40.2]} 29... Qxg2 {[%clk 0:00:50.7]} 30. Qxc4 {[%clk 0:01:37.6]}
30... Rf2 {[%clk 0:00:51.1]} 31. Qc3 {[%clk 0:01:17.6]} 31... e4 {[%clk
0:00:46.7]} 32. Rd4 {[%clk 0:01:17.6]} 32... Rc2 {[%clk 0:00:44.3]} 33. Rg1
{[%clk 0:00:24.4]} 33... Qxh2 {[%clk 0:00:38.6]} 34. Nf1 {[%clk 0:00:23.2]}
34... Qxg1 {[%clk 0:00:33]} 35. Qe1 {[%clk 0:00:21.3]} 35... Rf8 {[%clk
0:00:29.6]} 0-1

[Event "*** SCC Grand Prix: Titled Tuesday Blitz"]
[Site "Chess.com"]
[Date "2020.10.06"]
[Round "4"]
[White "AleksanderHnydiuk"]
[Black "Fischerev7"]
[Result "1-0"]
[WhiteElo "2549"]
[BlackElo "2342"]
[TimeControl "180+1"]
[EndTime "10:38:30 PDT"]
[Termination "AleksanderHnydiuk won on time"]

1. d4 {[%clk 0:03:00.9]} 1... Nf6 {[%clk 0:02:56.3]} 2. c4 {[%clk 0:03:00.5]}
2... e6 {[%clk 0:02:56.6]} 3. g3 {[%clk 0:03:00.4]} 3... d5 {[%clk 0:02:54.9]}
4. Nf3 {[%clk 0:02:59.6]} 4... Be7 {[%clk 0:02:55.2]} 5. Bg2 {[%clk 0:02:59.4]}
5... O-O {[%clk 0:02:55.8]} 6. Nc3 {[%clk 0:02:56.3]} 6... b6 {[%clk 0:02:50]}
7. cxd5 {[%clk 0:02:55.4]} 7... Nxd5 {[%clk 0:02:47.5]} 8. O-O {[%clk
0:02:55.4]} 8... Bb7 {[%clk 0:02:46.3]} 9. Re1 {[%clk 0:02:44.8]} 9... Nd7
{[%clk 0:02:41.7]} 10. e4 {[%clk 0:02:44.5]} 10... Nxc3 {[%clk 0:02:41.5]} 11.
bxc3 {[%clk 0:02:45.4]} 11... c5 {[%clk 0:02:17.3]} 12. Bf4 {[%clk 0:02:44.9]}
12... cxd4 {[%clk 0:02:12.2]} 13. cxd4 {[%clk 0:02:44.4]} 13... Rc8 {[%clk
0:02:09.5]} 14. Qb3 {[%clk 0:02:13.2]} 14... Nf6 {[%clk 0:02:05.9]} 15. Ne5
{[%clk 0:02:09.7]} 15... h6 {[%clk 0:01:48.2]} 16. Rad1 {[%clk 0:02:07.5]} 16...
Nh5 {[%clk 0:01:03]} 17. Be3 {[%clk 0:02:01.8]} 17... Nf6 {[%clk 0:01:02.7]} 18.
d5 {[%clk 0:01:53.1]} 18... exd5 {[%clk 0:00:59.7]} 19. exd5 {[%clk 0:01:54]}
19... Bd6 {[%clk 0:00:59.3]} 20. Bd4 {[%clk 0:01:49.2]} 20... Re8 {[%clk
0:00:50.7]} 21. Nc6 {[%clk 0:01:45.5]} 21... Bxc6 {[%clk 0:00:40.8]} 22. dxc6
{[%clk 0:01:46.4]} 22... Rxe1+ {[%clk 0:00:40.7]} 23. Rxe1 {[%clk 0:01:47.3]}
23... Be7 {[%clk 0:00:31.2]} 24. Qe3 {[%clk 0:01:34.7]} 24... Bd6 {[%clk
0:00:25]} 25. h3 {[%clk 0:00:55.3]} 25... Rc7 {[%clk 0:00:21.6]} 26. Bf3 {[%clk
0:00:48.1]} 26... Re7 {[%clk 0:00:19.3]} 27. Qd2 {[%clk 0:00:45.7]} 27... Rxe1+
{[%clk 0:00:19]} 28. Qxe1 {[%clk 0:00:46.6]} 28... Nh7 {[%clk 0:00:07]} 29. Qc3
{[%clk 0:00:41.4]} 29... Bf8 {[%clk 0:00:04]} 30. c7 {[%clk 0:00:40]} 30... Qc8
{[%clk 0:00:04.1]} 31. Bb7 {[%clk 0:00:36.1]} 31... Qxb7 {[%clk 0:00:01.5]} 32.
c8=Q {[%clk 0:00:36.3]} 32... Qe4 {[%clk 0:00:01.1]} 33. Bxg7 {[%clk 0:00:32.2]}
1-0

[Event "*** SCC Grand Prix: Titled Tuesday Blitz"]
[Site "Chess.com"]
[Date "2020.10.06"]
[Round "4"]
[White "JoliyRoger"]
[Black "Aleksey_Sorokin"]
[Result "0-1"]
[WhiteElo "2459"]
[BlackElo "2816"]
[TimeControl "180+1"]
[EndTime "10:38:31 PDT"]
[Termination "Aleksey_Sorokin won by resignation"]

1. Nf3 {[%clk 0:03:00.9]} 1... Nf6 {[%clk 0:02:59.9]} 2. c4 {[%clk 0:02:56.7]}
2... g6 {[%clk 0:03:00.8]} 3. Nc3 {[%clk 0:02:56.9]} 3... d5 {[%clk 0:03:01.5]}
4. d4 {[%clk 0:02:57.1]} 4... Bg7 {[%clk 0:03:01.3]} 5. Bg5 {[%clk 0:02:57.5]}
5... Ne4 {[%clk 0:03:00.8]} 6. cxd5 {[%clk 0:02:58]} 6... Nxg5 {[%clk
0:03:00.6]} 7. Nxg5 {[%clk 0:02:58.6]} 7... e6 {[%clk 0:03:01.1]} 8. Nf3 {[%clk
0:02:59.2]} 8... exd5 {[%clk 0:03:00.9]} 9. b4 {[%clk 0:03:00.1]} 9... Qd6
{[%clk 0:03:00.1]} 10. Qb3 {[%clk 0:03:00.6]} 10... O-O {[%clk 0:02:56.5]} 11.
e3 {[%clk 0:03:01]} 11... c6 {[%clk 0:02:54.4]} 12. Be2 {[%clk 0:03:00.4]} 12...
Be6 {[%clk 0:02:46.6]} 13. O-O {[%clk 0:02:59.6]} 13... Nd7 {[%clk 0:02:46.9]}
14. Rfd1 {[%clk 0:02:56.4]} 14... b5 {[%clk 0:02:34.8]} 15. a4 {[%clk
0:02:55.6]} 15... a5 {[%clk 0:02:34.7]} 16. axb5 {[%clk 0:02:02]} 16... Qxb4
{[%clk 0:02:33.5]} 17. Rab1 {[%clk 0:01:32.3]} 17... c5 {[%clk 0:02:22]} 18. Qc2
{[%clk 0:01:22.2]} 18... c4 {[%clk 0:02:12]} 19. Rxb4 {[%clk 0:01:12.2]} 19...
axb4 {[%clk 0:02:12.9]} 20. Nb1 {[%clk 0:01:00.9]} 20... b3 {[%clk 0:02:01.1]}
21. Qc3 {[%clk 0:00:47.2]} 21... Ra2 {[%clk 0:02:00.3]} 22. Bf1 {[%clk
0:00:44.1]} 22... Rb8 {[%clk 0:01:52.8]} 23. Qe1 {[%clk 0:00:34.1]} 23... Bf8
{[%clk 0:01:48.3]} 24. e4 {[%clk 0:00:33.8]} 24... Nb6 {[%clk 0:01:36.2]} 25.
Ng5 {[%clk 0:00:32.1]} 25... Bg4 {[%clk 0:01:31.9]} 26. f3 {[%clk 0:00:30.6]}
26... Bd7 {[%clk 0:01:31.7]} 27. Nc3 {[%clk 0:00:25.4]} 27... Bb4 {[%clk
0:01:30]} 28. Qh4 {[%clk 0:00:18.3]} 28... h5 {[%clk 0:01:20.9]} 29. Nxa2 {[%clk
0:00:18.3]} 29... bxa2 {[%clk 0:01:20.7]} 30. exd5 {[%clk 0:00:18.2]} 30... Bc3
{[%clk 0:01:11.4]} 31. Qg3 {[%clk 0:00:18.2]} 31... Ra8 {[%clk 0:01:06.7]} 32.
Qc7 {[%clk 0:00:18]} 32... a1=Q {[%clk 0:01:00.9]} 33. Rxa1 {[%clk 0:00:17.7]}
33... Bxd4+ {[%clk 0:01:01.2]} 34. Kh1 {[%clk 0:00:14.3]} 34... Rxa1 {[%clk
0:01:02.1]} 35. h4 {[%clk 0:00:14.6]} 35... Rxf1+ {[%clk 0:01:00.7]} 36. Kh2
{[%clk 0:00:15.2]} 36... Re1 {[%clk 0:01:00.8]} 37. g3 {[%clk 0:00:13.1]} 37...
Re2+ {[%clk 0:00:58]} 38. Kh1 {[%clk 0:00:11.4]} 38... c3 {[%clk 0:00:56.7]} 39.
Ne4 {[%clk 0:00:05.3]} 39... c2 {[%clk 0:00:54.3]} 40. Qd8+ {[%clk 0:00:03.1]}
40... Kg7 {[%clk 0:00:53.2]} 41. Qc7 {[%clk 0:00:02.6]} 41... Re1+ {[%clk
0:00:51.5]} 0-1

[Event "*** SCC Grand Prix: Titled Tuesday Blitz"]
[Site "Chess.com"]
[Date "2020.10.06"]
[Round "4"]
[White "DenishevM"]
[Black "Ladislav1969"]
[Result "0-1"]
[WhiteElo "2550"]
[BlackElo "2374"]
[TimeControl "180+1"]
[EndTime "10:38:31 PDT"]
[Termination "Ladislav1969 won by resignation"]

1. Nf3 {[%clk 0:02:59.7]} 1... Nf6 {[%clk 0:02:59.3]} 2. c4 {[%clk 0:02:59.8]}
2... g6 {[%clk 0:02:58.4]} 3. g3 {[%clk 0:02:59.6]} 3... Bg7 {[%clk 0:02:58]} 4.
Bg2 {[%clk 0:02:59.9]} 4... d5 {[%clk 0:02:55.3]} 5. cxd5 {[%clk 0:02:59.2]}
5... Nxd5 {[%clk 0:02:55.4]} 6. Nc3 {[%clk 0:03:00.1]} 6... c5 {[%clk
0:02:52.6]} 7. O-O {[%clk 0:02:59.4]} 7... Nc6 {[%clk 0:02:51]} 8. Qc2 {[%clk
0:02:56]} 8... Ndb4 {[%clk 0:02:35]} 9. Qb1 {[%clk 0:02:52.3]} 9... Bf5 {[%clk
0:02:26.6]} 10. d3 {[%clk 0:02:52]} 10... Nd4 {[%clk 0:02:10.4]} 11. Nxd4 {[%clk
0:02:48.9]} 11... cxd4 {[%clk 0:02:10]} 12. Ne4 {[%clk 0:02:38]} 12... Rc8
{[%clk 0:02:04.8]} 13. a3 {[%clk 0:02:18]} 13... Nd5 {[%clk 0:01:54.8]} 14. Bd2
{[%clk 0:02:14.9]} 14... O-O {[%clk 0:01:53.1]} 15. Qa2 {[%clk 0:02:15]} 15...
h6 {[%clk 0:01:43.4]} 16. Rac1 {[%clk 0:02:14.6]} 16... Be6 {[%clk 0:01:11.9]}
17. Qb1 {[%clk 0:02:09.7]} 17... Qb6 {[%clk 0:01:07.3]} 18. b4 {[%clk
0:02:07.7]} 18... Nc3 {[%clk 0:00:59.1]} 19. Nxc3 {[%clk 0:01:54.9]} 19... dxc3
{[%clk 0:00:57.7]} 20. Be3 {[%clk 0:01:55.4]} 20... Qa6 {[%clk 0:00:55.9]} 21.
Qa1 {[%clk 0:01:41.1]} 21... c2 {[%clk 0:00:55.8]} 22. Bd4 {[%clk 0:01:39.9]}
22... Bxd4 {[%clk 0:00:54.2]} 23. Qxd4 {[%clk 0:01:40.8]} 23... Qxa3 {[%clk
0:00:54.4]} 24. Bxb7 {[%clk 0:01:41]} 24... Rc7 {[%clk 0:00:51.9]} 25. Be4
{[%clk 0:01:36.8]} 25... Rb8 {[%clk 0:00:48.6]} 26. Qe5 {[%clk 0:01:33.7]} 26...
Qc3 {[%clk 0:00:35.5]} 27. d4 {[%clk 0:01:30.1]} 27... Bb3 {[%clk 0:00:30.6]}
28. f4 {[%clk 0:01:18.2]} 28... Rxb4 {[%clk 0:00:29]} 29. f5 {[%clk 0:01:06]}
29... Qxd4+ {[%clk 0:00:29]} 30. Qxd4 {[%clk 0:01:02.8]} 30... Rxd4 {[%clk
0:00:29.5]} 31. Bd3 {[%clk 0:01:02.5]} 31... a5 {[%clk 0:00:26.2]} 32. fxg6
{[%clk 0:01:02.5]} 32... fxg6 {[%clk 0:00:26]} 33. Bxg6 {[%clk 0:01:03]} 33...
Rd1 {[%clk 0:00:24.1]} 34. Kg2 {[%clk 0:00:52.9]} 34... Rxf1 {[%clk 0:00:22.3]}
35. Kxf1 {[%clk 0:00:52.2]} 35... a4 {[%clk 0:00:22.7]} 36. Ke1 {[%clk
0:00:44.4]} 36... a3 {[%clk 0:00:20]} 37. Kd2 {[%clk 0:00:39.7]} 37... a2 {[%clk
0:00:20.3]} 38. Ra1 {[%clk 0:00:40.1]} 38... Kg7 {[%clk 0:00:19]} 0-1

[Event "*** SCC Grand Prix: Titled Tuesday Blitz"]
[Site "Chess.com"]
[Date "2020.10.06"]
[Round "4"]
[White "swimmerchess"]
[Black "Itk04"]
[Result "1-0"]
[WhiteElo "2818"]
[BlackElo "2464"]
[TimeControl "180+1"]
[EndTime "10:38:32 PDT"]
[Termination "swimmerchess won by resignation"]

1. e4 {[%clk 0:03:00]} 1... e6 {[%clk 0:02:59.7]} 2. d4 {[%clk 0:02:59.7]} 2...
d5 {[%clk 0:03:00.3]} 3. Nd2 {[%clk 0:03:00.4]} 3... c5 {[%clk 0:02:58.8]} 4.
Ngf3 {[%clk 0:03:00.4]} 4... cxd4 {[%clk 0:02:56.7]} 5. exd5 {[%clk 0:02:59.6]}
5... Qxd5 {[%clk 0:02:55.2]} 6. Bc4 {[%clk 0:02:59.3]} 6... Qd7 {[%clk
0:02:55.7]} 7. O-O {[%clk 0:02:59.2]} 7... Nc6 {[%clk 0:02:53.7]} 8. Nb3 {[%clk
0:02:59.4]} 8... Nf6 {[%clk 0:02:50.8]} 9. Nbxd4 {[%clk 0:02:59]} 9... Nxd4
{[%clk 0:02:51.1]} 10. Nxd4 {[%clk 0:02:59.9]} 10... a6 {[%clk 0:02:51.5]} 11.
Re1 {[%clk 0:02:57.5]} 11... Bc5 {[%clk 0:02:26.7]} 12. Be3 {[%clk 0:01:59.9]}
12... O-O {[%clk 0:02:07.2]} 13. Qe2 {[%clk 0:01:59.7]} 13... b5 {[%clk
0:01:44.3]} 14. Bb3 {[%clk 0:01:46.6]} 14... Qc7 {[%clk 0:00:49.2]} 15. Rad1
{[%clk 0:01:39.3]} 15... Bb7 {[%clk 0:00:42.1]} 16. f3 {[%clk 0:01:22.1]} 16...
Nd5 {[%clk 0:00:41]} 17. Bf2 {[%clk 0:01:21.7]} 17... Nf4 {[%clk 0:00:32.6]} 18.
Qe5 {[%clk 0:01:20.6]} 18... Qxe5 {[%clk 0:00:30.6]} 19. Rxe5 {[%clk 0:01:21.5]}
19... Bd6 {[%clk 0:00:24.1]} 20. Ree1 {[%clk 0:01:21.4]} 20... Bc5 {[%clk
0:00:17.2]} 21. Kf1 {[%clk 0:01:14.8]} 21... Rfd8 {[%clk 0:00:16.6]} 22. c3
{[%clk 0:01:11.5]} 22... Bd5 {[%clk 0:00:06.6]} 23. Nxe6 {[%clk 0:01:01.4]}
23... Bxf2 {[%clk 0:00:03.3]} 24. Nxd8 {[%clk 0:01:00.9]} 24... Bxe1 {[%clk
0:00:02.1]} 25. Bxd5 {[%clk 0:01:01.3]} 25... Nxd5 {[%clk 0:00:01.8]} 26. Rxd5
{[%clk 0:01:02.2]} 26... Bh4 {[%clk 0:00:01.3]} 27. Nc6 {[%clk 0:01:01.2]} 27...
Re8 {[%clk 0:00:01.2]} 28. g3 {[%clk 0:01:00.4]} 28... Bf6 {[%clk 0:00:01.1]}
29. Nb4 {[%clk 0:00:54.7]} 29... Re6 {[%clk 0:00:01.6]} 30. Rc5 {[%clk
0:00:50.2]} 30... g6 {[%clk 0:00:02.3]} 31. Rc8+ {[%clk 0:00:48.2]} 31... Kg7
{[%clk 0:00:02.3]} 32. Ra8 {[%clk 0:00:48.8]} 32... Be7 {[%clk 0:00:02.5]} 33.
Rxa6 {[%clk 0:00:47.8]} 33... Bxb4 {[%clk 0:00:01.2]} 34. Rxe6 {[%clk
0:00:47.7]} 34... fxe6 {[%clk 0:00:02.1]} 35. cxb4 {[%clk 0:00:47.9]} 35... Kf6
{[%clk 0:00:03]} 36. b3 {[%clk 0:00:48.2]} 36... Ke5 {[%clk 0:00:03.9]} 37. a4
{[%clk 0:00:48.5]} 37... Kd4 {[%clk 0:00:04.8]} 38. a5 {[%clk 0:00:48.5]} 38...
Kd5 {[%clk 0:00:05.7]} 39. Ke2 {[%clk 0:00:48.5]} 39... Kc6 {[%clk 0:00:06.6]}
40. Kd3 {[%clk 0:00:48.8]} 1-0